Cogmind - Beta 14 @@@ ROGUE MODE // 2024.11.08 @ 07:48:15 Player: star Result: Destroyed by D-53 Grenadier with Mini Grenade Launcher Performance ------------- Evolutions (0) 0 Regions Visited (4) 800 Robots Destroyed (26) 130 Value Destroyed (533) 533 Prototype IDs (1) 20 Alien Tech Used (0) 0 Bonus (0) 0 TOTAL SCORE: 1483 Bonus ------- None Cogmind --------- Core Integrity 0/250 Matter 290/300 Energy 310/310 System Corruption 2% Temperature Cool (0) Movement Rolling (80) Location -9/Mines Parts ------- > --- POWER (1) -------- Fission Core > --- PROPULSION (2) --- Wheel Wheel > --- UTILITY (2) ------ Small Storage Unit Experimental Sensor Array > --- WEAPON (2) ------- Heavy Assault Rifle > --- INVENTORY (8) ---- High-capacity Battery (250) Signal Interpreter Armor Integrity Analyzer Hacking Suite Heavy Assault Rifle Heavy Assault Rifle Bore Cannon Plasma Cutter Peak State ------------ > --- POWER ------------ Fission Core > --- PROPULSION ------- Wheel Wheel > --- UTILITY ---------- Small Storage Unit Experimental Sensor Array > --- WEAPON ----------- Heavy Assault Rifle Heavy Assault Rifle > --- INVENTORY -------- High-capacity Battery Signal Interpreter Armor Integrity Analyzer Hacking Suite Heavy Assault Rifle Heavy Assault Rifle Bore Cannon Plasma Cutter [Rating: 23] Favorites ----------- Power Ion Engine Engine Ion Engine Power Core Fission Core Propulsion Aluminum Leg Leg Aluminum Leg Wheel Wheel Utility Small Storage Unit Device Experimental Sensor Array Storage Small Storage Unit Weapon Heavy Assault Rifle Energy Gun Medium Laser Ballistic Gun Heavy Assault Rifle Build | -11 -10 -10 -10 -9 ------- Run | Yrd Mat Min Exi Min Slots Evolved . | . . . . . Power . | . . . . . Propulsion . | . . . . . Utility . | . . . . . Weapon . | . . . . . Parts Attached 16 | 6 6 3 . 1 Power 3 | 1 1 . . 1 Engine 2 | 1 1 . . . Core 1 | . . . . 1 Reactor . | . . . . . Propulsion 7 | 2 3 2 . . Treads . | . . . . . Leg 3 | . 3 . . . Wheel 4 | 2 . 2 . . Hover . | . . . . . Flight . | . . . . . Utility 2 | 1 . 1 . . Device 1 | . . 1 . . Storage 1 | 1 . . . . Processor . | . . . . . Hackware . | . . . . . Protection . | . . . . . Artifact . | . . . . . Weapon 4 | 2 2 . . . Energy Gun 2 | 2 . . . . Energy Cannon . | . . . . . Ballistic Gun 2 | . 2 . . . Ballistic Cannon . | . . . . . Launcher . | . . . . . Special Weapon . | . . . . . Impact Weapon . | . . . . . Slashing Weapon . | . . . . . Piercing Weapon . | . . . . . Special Melee Weapon . | . . . . . Unidentified Prototypes 1 | . . 1 . . Corrupted Parts 1 | . 1 . . . System Corruption 1 | . 1 . . . Parts Lost 3 | . 1 1 . 1 Power . | . . . . . Propulsion 1 | . . 1 . . Utility . | . . . . . Weapon 2 | . 1 . . 1 Highest Loss Streak 1 | . 1 1 . 1 To Critical Strikes . | . . . . . Average Slot Usage (%) 88 | . 85 85 100 99 Engine 13 | . 14 14 14 9 Leg 15 | . 20 19 . . Wheel 8 | . 7 . 28 28 Device 6 | . . 7 14 14 Storage 14 | . 14 14 14 14 Energy Gun 2 | . 8 . . . Ballistic Gun 25 | . 19 28 28 27 Peak Build Rating 23 | 6 9 18 18 23 Average Rating 12 | 3 8 13 18 19 On Entrance 10 | . 6 9 18 18 Naked Turns . | . . . . . Heaviest Build 22 | 12 16 17 17 22 Greatest Support 20 | 20 20 20 20 20 Greatest Overweight (x) 1 | . 1 1 . 1 Average Overweight (x) . | . . . . . Largest Inventory Capacity 8 | 8 8 8 8 8 Average Capacity 7 | 6 8 8 8 8 Most Carried 8 | . 8 8 8 8 Average Carried 7 | . 6 8 8 8 Final Capacity 8 | 8 8 8 8 8 Final Carried 8 | . 8 8 8 8 Class Distribution -------------------- 100% | Mutant Dominant Class ---------------- Mutant | -10/Materials Mutant | -10/Mines Mutant | -10/Exiles Mutant | -9/Mines Resources | -11 -10 -10 -10 -9 ----------- Run | Yrd Mat Min Exi Min Matter Collected 620 | 212 208 158 . 42 Remotely . | . . . . . Salvage Created 668 | . 401 264 . 3 Parts 63 | . 30 33 . . Haulers Intercepted . | . . . . . Recyclers Shooed . | . . . . . Parts Field Recycled . | . . . . . Retrieved Matter . | . . . . . Parts Self-Destructed . | . . . . . Prevented . | . . . . . Kills | -11 -10 -10 -10 -9 ------- Run | Yrd Mat Min Exi Min Combat Hostiles Destroyed 23 | . 8 14 . 1 Guns 23 | . 8 14 . 1 Classes Destroyed 5 | . 3 1 . 1 Worker 2 | . 2 . . . Operator 2 | . 2 . . . Swarmer 12 | . . 12 . . Grunt 10 | . 8 2 . . Assembled 1 | . . . . 1 Best Kill Streak 4 | . 4 4 . 1 Combat Bots Only 4 | . 4 4 . 1 Max Kills in Single Turn 1 | . 1 1 . 1 Gunslinging . | . . . . . Exploded . | . . . . . Melee . | . . . . . Uniques/NPCs Destroyed . | . . . . . Combat | -11 -10 -10 -10 -9 -------- Run | Yrd Mat Min Exi Min Hostile Shots Fired 76 | . 28 43 . 5 Missed 14 | . 3 11 . . Damage Taken 781 | . 302 289 . 190 Core 261 | . 80 96 . 85 Absorbed by Shields . | . . . . . Core Remaining (%) 100 | 100 . . . . Volleys Fired 59 | . 29 25 . 5 Largest 2 | . 2 2 . 2 Hottest 90 | . 90 46 . 46 Shots Fired 116 | . 56 51 . 9 Gun 116 | . 56 51 . 9 Cannon . | . . . . . Launcher . | . . . . . Special . | . . . . . Kinetic 92 | . 32 51 . 9 Thermal 12 | . 12 . . . Explosive . | . . . . . Electromagnetic 12 | . 12 . . . Robot Hit Streak 7 | . 7 6 . 3 Robot Miss Streak 6 | . 3 6 . 2 Penetration Max . | . . . . . Secondary Targets 3 | . . 3 . . Max Gunslinging Chain 1 | . . 1 . . Shots Hit Robots 57 | . 33 19 . 5 Core Hits 40 | . 21 15 . 4 Critical Kills . | . . . . . Critical Parts Destroyed . | . . . . . Critical Strikes . | . . . . . Melee Attacks . | . . . . . Impact . | . . . . . Slashing . | . . . . . Piercing . | . . . . . Sneak Attacks . | . . . . . Combat Hostiles . | . . . . . Follow-up Attacks . | . . . . . Damage Inflicted 899 | . 485 333 . 81 Guns 899 | . 485 333 . 81 Cannons . | . . . . . Explosions . | . . . . . Melee . | . . . . . Ramming . | . . . . . Kinetic 704 | . 290 333 . 81 Thermal 75 | . 75 . . . Explosive . | . . . . . Electromagnetic 120 | . 120 . . . Impact . | . . . . . Slashing . | . . . . . Piercing . | . . . . . Highest Corruption 2 | . 2 2 2 2 Average Corruption 1 | . 1 2 2 2 Corruption Purged . | . . . . . Corruption Blocked . | . . . . . Effects 12 | . 3 7 . 2 Message Errors 1 | . . . . 1 Matter Fused 1 | . 1 . . . Heat Flow Errors 1 | . . 1 . . Energy Discharges 4 | . 1 2 . 1 Data Loss (minor) 3 | . 1 2 . . Data Loss (major) 1 | . . 1 . . Misfires 1 | . . 1 . . Overload Shots . | . . . . . Overflow Damage . | . . . . . Projectiles . | . . . . . Explosions . | . . . . . Melee . | . . . . . Knockbacks . | . . . . . Impact . | . . . . . Kinetic . | . . . . . Secondary . | . . . . . Self-Inflicted Damage . | . . . . . Shots . | . . . . . Rammed . | . . . . . Targets Rammed 1 | . 1 . . . Kicked 1 | . 1 . . . Crushed . | . . . . . Highest Temperature 194 | . 194 97 . . Average Temperature 68 | . 75 47 . . Received Heat Transfer 198 | . 168 30 . . Siege Activations . | . . . . . Robots Corrupted . | . . . . . Combat Hostiles . | . . . . . Parts Fried . | . . . . . Impact Corruptions . | . . . . . Robots Melted . | . . . . . Combat Hostiles . | . . . . . Parts Melted . | . . . . . Heat Transferred 222 | . 222 . . . Parts Sabotaged . | . . . . . Parts Stolen . | . . . . . Parts Stripped . | . . . . . Power Chain Reactions . | . . . . . Alert | -11 -10 -10 -10 -9 ------- Run | Yrd Mat Min Exi Min Peak Influence 305 | . 146 305 . . Initial 40 | . . 40 . . Average 120 | . 100 185 . . Maximum Alert Level 1 | . . 1 . . Low Security (%) 85 | 100 100 69 . 100 Level 1 14 | . . 30 . . Level 2 . | . . . . . Level 3 . | . . . . . Level 4 . | . . . . . Level 5 . | . . . . . High Security . | . . . . . Max Security . | . . . . . Squads Dispatched 1 | . 1 . . . Investigation . | . . . . . Extermination . | . . . . . Reinforcement 1 | . 1 . . . Assault . | . . . . . Garrison . | . . . . . Intercept . | . . . . . Searches Triggered . | . . . . . Construction Impeded . | . . . . . Haulers Reinforced . | . . . . . Active Scanning Responses . | . . . . . Cargo Convoy Interrupts . | . . . . . Stealth | -11 -10 -10 -10 -9 --------- Run | Yrd Mat Min Exi Min Distress Signals 4 | . 3 . . 1 Communications Jammed . | . . . . . Distress Signals . | . . . . . Times Spotted 33 | . 17 15 . 1 Peak Tracking Total 5 | . 5 3 . 1 Tactical Retreats 2 | . 1 1 . . Traps | -11 -10 -10 -10 -9 ------- Run | Yrd Mat Min Exi Min Traps Triggered 1 | . 1 . . . Indirectly . | . . . . . Trap Hack Attempts . | . . . . . Triggered . | . . . . . Disarmed . | . . . . . Reprogrammed . | . . . . . Reused . | . . . . . Traps Extracted . | . . . . . Installed . | . . . . . Triggered . | . . . . . Machines | -11 -10 -10 -10 -9 ---------- Run | Yrd Mat Min Exi Min Machines Disabled . | . . . . . Max in Single Turn . | . . . . . Machines Repaired . | . . . . . Machines Dismantled . | . . . . . Machines Sabotaged . | . . . . . Overloaded Fab Kills . | . . . . . Hacking | -11 -10 -10 -10 -9 --------- Run | Yrd Mat Min Exi Min Machines Accessed . | . . . . . Terminals . | . . . . . Fabricators . | . . . . . Repair Stations . | . . . . . Recycling Units . | . . . . . Scanalyzers . | . . . . . Garrison Access . | . . . . . Total Hacks . | . . . . . Successful . | . . . . . Failed . | . . . . . Catastrophic . | . . . . . Database Lockouts . | . . . . . Manual . | . . . . . Terminals . | . . . . . Fabricators . | . . . . . Repair Stations . | . . . . . Recycling Units . | . . . . . Scanalyzers . | . . . . . Garrison Access . | . . . . . Terminal Hacks . | . . . . . Fabricator Hacks . | . . . . . Repair Station Hacks . | . . . . . Recycling Unit Hacks . | . . . . . Scanalyzer . | . . . . . Garrison Access Hacks . | . . . . . Unauthorized Hacks . | . . . . . Terminals . | . . . . . Fabricators . | . . . . . Repair Stations . | . . . . . Recycling Units . | . . . . . Scanalyzers . | . . . . . Garrison Access . | . . . . . Data Cores Recovered 2 | . 2 . . . Used . | . . . . . Hacking Detections . | . . . . . Full Trace Events . | . . . . . Feedback Events . | . . . . . Feedback Blocked . | . . . . . Robot Schematics Acquired . | . . . . . Robots Built . | . . . . . Authchips . | . . . . . Time . | . . . . . Total Robot Build Rating . | . . . . . Part Schematics Acquired . | . . . . . Parts Built . | . . . . . Authchips . | . . . . . Time . | . . . . . Total Part Build Rating . | . . . . . Parts Repaired . | . . . . . Time . | . . . . . Parts Recycled . | . . . . . Recycled Matter . | . . . . . Retrieved Matter . | . . . . . Retrieved Components . | . . . . . Parts Scanalyzed . | . . . . . Part Schematics Acquired . | . . . . . Parts Damaged . | . . . . . Bothacking | -11 -10 -10 -10 -9 ------------ Run | Yrd Mat Min Exi Min Used RIF Installer . | . . . . . Robots Hacked . | . . . . . Non-combat . | . . . . . Combat . | . . . . . Robot Hacks Applied . | . . . . . Relay Couplers Released . | . . . . . Fabnet Peak Effective % . | . . . . . Robots Rewired . | . . . . . Allies Hacked . | . . . . . Hacks Repelled . | . . . . . Allies | -11 -10 -10 -10 -9 -------- Run | Yrd Mat Min Exi Min Total Allies . | . . . . . Largest Group . | . . . . . Highest-Rated Group . | . . . . . Highest-Rated Ally . | . . . . . Total Orders . | . . . . . Ally Attacks . | . . . . . Total Damage . | . . . . . Kills . | . . . . . Allies Corrupted . | . . . . . Allies Melted . | . . . . . Intel | -11 -10 -10 -10 -9 ------- Run | Yrd Mat Min Exi Min Robot Analysis Total . | . . . . . Derelict Logs Recovered 1 | . . 1 . . Drone Launches . | . . . . . Drone Recoveries . | . . . . . Exploration | -11 -10 -10 -10 -9 ------------- Run | Yrd Mat Min Exi Min Turns Passed 1529 | 36 476 711 43 263 Spaces Moved 887 | 35 299 406 54 93 Core 1 | 1 . . . . Treads . | . . . . . Legs 620 | . 227 393 . . Wheels 266 | 34 72 13 54 93 Hover . | . . . . . Flight . | . . . . . Fastest Speed 50 | 50 80 80 80 80 Average Speed 124 | 79 111 152 80 90 Slowest Speed 190 | 80 190 190 80 95 Overloaded Moves . | . . . . . Propulsion Burnouts . | . . . . . Robots Hopped . | . . . . . Cave-ins Triggered . | . . . . . Exploration Rate (%) 38 | 3 64 88 10 27 Regions Visited 4 Branch Regions 3 Pre-discovered Areas 2 | . . 1 . 1 Known Exits Taken . | . . . . . Unknown Exits Taken 4 | 1 1 1 1 . Scrap Searched 2 | . . 2 . . Spaces Dug . | . . . . . Terrain Destroyed . | . . . . . Melee . | . . . . . Projectile . | . . . . . AOE . | . . . . . Terrain Rammed . | . . . . . Walls Destroyed . | . . . . . Machines Disabled . | . . . . . Actions | -11 -10 -10 -10 -9 --------- Run | Yrd Mat Min Exi Min Total 1187 | 40 385 445 53 264 Wait 214 | . 42 12 . 160 Move 883 | 34 298 405 53 93 Hop . | . . . . . Pick Up 10 | . 8 . . 2 Fast Attach 8 | 6 . 2 . . Attach 1 | . 1 . . . Detach . | . . . . . Swap 7 | . 5 1 . 1 Drop 4 | . 1 . . 3 Fire 59 | . 29 25 . 5 Melee . | . . . . . Ram . | . . . . . Kick 1 | . 1 . . . Crush . | . . . . . Escape Stasis . | . . . . . Rewire . | . . . . . Trap . | . . . . . Miscellaneous . | . . . . . Route ------- -11/Scrapyard -10/Materials (discovered 3 exits: [*Mat x2] / [*Min]) -10/Mines (discovered 2 exits: [*Mat] / [*Exi]) -10/Exiles -9/Mines History --------- Turn | Location | Event 6 | -11/Scrapyard | Discovered new exit (range 16) 37 | -11/Scrapyard | Entered Materials 209 | -10/Materials | Discovered new exit (range 3) 312 | -10/Materials | Build established: Mutant 359 | -10/Materials | Discovered new exit (range 15) 502 | -10/Materials | Discovered new exit (range 10) 513 | -10/Materials | Entered Mines 548 | -10/Mines | A weapon hastily lodged in a ceiling crevice suddenly fell to the ground 709 | -10/Mines | Core integrity fell below 50% 797 | -10/Mines | Learned location of Zion (-7) 819 | -10/Mines | Found a damaged Exp. Sensor Array with a note attached 822 | -10/Mines | Found Prototype Device 822 | -10/Mines | Identified Exp. Sensor Array 1130 | -10/Mines | Discovered new exit (range 8) 1220 | -10/Mines | Deemed a non-threat by the Exiles lab entrance 1221 | -10/Mines | Discovered new exit (range 5) 1224 | -10/Mines | Entered Exiles 1235 | -10/Exiles | Discovered new exit (range 15) 1251 | -10/Exiles | Met 8R-AWN 1267 | -10/Exiles | Entered Mines 1268 | -9/Mines | Assembled infested the area 1268 | -9/Mines | Learned location of Storage (-9) 1273 | -9/Mines | Assisted by a Guerilla fighting off Assembled 1314 | -9/Mines | Met a Derelict bent on vengeance 1525 | -9/Mines | Core integrity fell below 20% 1530 | -9/Mines | Destroyed by D-53 Grenadier with Mini Grenade Launcher Last Messages --------------- 01270_ RS-CIL(g) slips back into the shadows. 01271_ T-07 Excavator is excavating. 01273_ A derelict emerges from the shadows: "You need to get out of here! I've been tracking a group of Assembled to figure out where they're coming from, and they're closing on this area, come on!" 01275_ T-07 Excavator is excavating. 01448_ Acquired 20 matter. 01452_ as-78840 destroyed. 01455_ Dropped Ion Engine. 01459_ Dropped Med. Laser. 01459_ Acquired Bore Cannon. 01461_ System corrupted: Energy discharge (-111). 01461_ Dropped Aluminum Leg. 01461_ Acquired Armor Integrity Analyzer. 01462_ Acquired 22 matter. 01475_ K-01 Serf collects debris. 01476_ The unstable cave ceiling collapses. 01483_ 6S:2W 5ZLRLH6MNR%MKOCAOYY VRGDWLGGL 01493_ K-01 Serf collects debris. 01528_ Hvy. Assault Rifle destroyed. Map ----- +----------------------------------------------------+ | ?????????????????????????????????????????????????? | | ?????????????????????????????????????????????????? | | ?????????????????????????????????????????????????? | | ?????????????????????????????????????????????????? | | ?????????????????????????????????????????????????? | | ?????????????????????????????????????????????????? | | ?????????????????????????????????????????????????? | | ?????????????????????????????????????????????????? | | ?????????????????????????????????????????????????? | | ?????????????????????????????????????????????????? | | ?????????????????????????????????????????????????? | | ?????????????????????????????????????????????????? | | ?????????????????????????????????????????????????? | | ?????????????????????????????????????????????????? | | ?????????????????????????????????????????????????? | | ?????????????????????????????????????????????????? | | ?????????????????#???????????????????????????????? | | ????????????????# ??????????????????????????????? | | ????????????????# ??????????????????????????????? | | ?????????????????# ?????????????????????????????? | | ??????????????????#*%?###?###????????????????????? | | ???????????????####d ## # ##???????????????????? | | ???????????????? ##??????????????????? | | ??????????????????# ##?????????????????? | | ????????????????????# #?????????????????? | | ????????????????????# @ #?????????????????? | | ????????????????????## ##???####??????????? | | ?????????????????????# ##?## #??????????? | | ?????????????????????# ## #???????????? | | ?????????????????????## #????????????? | | ?????????????????????# ##????????????? | | ?????????????????????# ! ##?????????????? | | ?????????????????????## %= ##?????????????? | | ??????????????????????#####= ##????????????? | | ????????????# ########## ##???????????? | | ????????????# # %* #???????????? | | ???????????? ? %!! ### #???????????? | | ????????????# % *%= ##??####???????????? | | ?????????????# ### ==! #####??????????????? | | ?????????????## ???## ! ####???????????? | | ??????????????## ????# ## ### ###?????????? | | ???????????????# ??????## # %## ??????????? | | ???????????????##???????# ## % ###?????????? | | ????????????????????????## ### *# #?????????? | | ?????????????????????????# ##????????? | | ?????????????????????????# # # ##???????? | | ?????????????????????????# % # #???????? | | ?????????????????????????## # #???????? | | ??????????????????????????## # ## # #???????? | | ???????????????????????????## ## ##??????? | +----------------------------------------------------+ Best States ------------- Heat Dissipation 25 Energy Generation 18 Energy Capacity 310 Matter Stores 300 Matter Capacity 300 Sight Range 16 Robot Scan Range 20 Terrain Scan Density 10 Evasion (%) 55 Item Schematics ----------------- None Robot Schematics ------------------ None Fabricated ------------ Nothing Alien Tech Used ----------------- None Achievements -------------- None Challenges ------------ None Game ------ Seed SingularityComponentLauncher Manual? 0 Play Time 00:10:01 Cumulative 130.3 hours Start 2024.11.07 @ 08:16:14 End 2024.11.08 @ 07:48:15 Sessions 2 Manual Loads 0 Difficulty Rogue Special Mode None Game No. 220 Rogue 220 Adventurer 0 Explorer 0 Win Type - Total 1 Types 1/0/0/0/0/0/0/0/0 Lore% 52 Gallery% 61 Achievement% 47 Wizard Run 0 Options --------- Layout 0 ASCII 0 Keyboard 1 Movement Numpad Keybinds 0 Fullscreen 2 Font 18/SmallcapsGlow Map View 76x50 Zoom Use 0% Tactical HUD 1 Map Filters NONE Filters NONE Steam 1 RUN: 3606b05a-f6ea-4126-abb9-677507d08230